[Event "ESP-ch Rapid 2018"]
[Site "Linares"]
[Date "2018.08.19"]
[Round "7"]
[White "Crespo Ruiz, Manuel Maria"]
[Black "Pallardo Lozoya, Jose Vicente"]
[Result "0-1"]
[ECO "A41"]
[WhiteElo "2026"]
[BlackElo "2382"]
[Annotator "NA"]
[PlyCount "44"]
[EventDate "2018.08.19"]
[EventType "team-tourn"]
[EventCountry "ESP"]
[SourceTitle "playchess.com"]
[Source "ChessBase"]
[SourceQuality "1"]
[TimeControl "900+5"]

1. d4 {[%emt 0:00:00]} d6 {[%emt 0:00:15]} 2. Nf3 {[%emt 0:00:00]} Bg4 {[%emt 0:00:02]} 3. Nbd2 {[%emt 0:00:02]} Nf6 {[%emt 0:00:31]} 4. e4 {[%emt 0:00:25]} e6 {[%emt 0:00:21]} 5. Be2 {[%emt 0:00:07]} d5 {[%emt 0:00:38]} 6. e5 {[%emt 0:00:44]} Nfd7 {[%emt 0:00:05]} 7. O-O {[%emt 0:00:04]} c5 {[%emt 0:00:08]} 8. dxc5 {[%emt 0:00:20]} Nc6 {[%emt 0:00:03]} 9. Re1 {[%emt 0:00:09]} Bxc5 {[%emt 0:00:11]} 10. Nb3 {[%emt 0:00:06]} Bb6 {[%emt 0:00:05]} 11. Bf4 {[%emt 0:00:32]} Qc7 {[%emt 0:01:19]} 12. h3 {[%emt 0:00:28]} Bh5 {[%emt 0:00:28]} 13. a4 {[%emt 0:03:26]} a6 {[%emt 0:00:06]} 14. g4 {[%emt 0:00:40]} Bg6 {[%emt 0:00:08]} 15. Bd3 {[%emt 0:00:08]} O-O {[%emt 0:02:54]} 16. Bg3 {[%emt 0:00:28]} f5 {[%emt 0:02:06]} 17. Kg2 {[%emt 0:04:14]} f4 {[%emt 0:01:26]} 18. Bxg6 {[%emt 0:00:32]} fxg3 {[%emt 0:00:25]} 19. Bd3 {[%emt 0:00:53]} Ndxe5 {[%emt 0:00:56]} 20. Be2 {[%emt 0:02:28]} gxf2 {[%emt 0:00:18]} 21. Rf1 {[%emt 0:00:05]} Nxf3 {[%emt 0:00:16]} 22. Bxf3 {[%emt 0:00:02]} Ne5 {[%emt 0:00:02]} 0-1

[Event "ESP-ch Rapid 2018"]
[Site "Linares"]
[Date "2018.08.19"]
[Round "7"]
[White "Izquierdo Puertas, Carlos"]
[Black "Tudela Corbalan, Carlos"]
[Result "1-0"]
[ECO "B00"]
[WhiteElo "2010"]
[BlackElo "2246"]
[Annotator "NA"]
[PlyCount "69"]
[EventDate "2018.08.19"]
[EventType "team-tourn"]
[EventCountry "ESP"]
[SourceTitle "playchess.com"]
[Source "ChessBase"]
[SourceQuality "1"]
[TimeControl "900+5"]

1. e4 {[%emt 0:00:00]} Nc6 {[%emt 0:01:26]} 2. d4 {[%emt 0:00:13]} d5 {[%emt 0:00:05]} 3. e5 {[%emt 0:00:08]} f6 {[%emt 0:00:08]} 4. f4 {[%emt 0:00:05]} Nh6 {[%emt 0:00:14]} 5. Nf3 {[%emt 0:00:51]} g6 {[%emt 0:00:11]} 6. Be3 {[%emt 0:00:22]} Bg7 {[%emt 0:00:04]} 7. Qd2 {[%emt 0:00:51]} O-O {[%emt 0:00:26]} 8. Nc3 {[%emt 0:00:45]} Bg4 {[%emt 0:00:23]} 9. Be2 {[%emt 0:00:12]} e6 {[%emt 0:00:10]} 10. h3 {[%emt 0:00:10]} Bxf3 {[%emt 0:00:04]} 11. Bxf3 {[%emt 0:00:05]} Nf5 {[%emt 0:00:09]} 12. Bf2 {[%emt 0:00:33]} fxe5 {[%emt 0:00:07]} 13. dxe5 {[%emt 0:00:23]} Nh4 {[%emt 0:00:33]} 14. Ne2 {[%emt 0:02:55]} Nxf3+ {[%emt 0:00:51]} 15. gxf3 {[%emt 0:00:02]} Bh6 {[%emt 0:00:06]} 16. h4 {[%emt 0:03:03]} Rf5 {[%emt 0:01:32]} 17. h5 {[%emt 0:01:34]} gxh5 {[%emt 0:00:23]} 18. O-O-O {[%emt 0:00:23]} Qe7 {[%emt 0:01:02]} 19. Rdg1+ {[%emt 0:00:11]} Kh8 {[%emt 0:00:07]} 20. Bh4 {[%emt 0:00:13]} Qf7 {[%emt 0:00:56]} 21. Bf6+ {[%emt 0:00:12]} Rxf6 {[%emt 0:00:03]} 22. exf6 {[%emt 0:00:01]} Rg8 {[%emt 0:01:28]} 23. Ng3 {[%emt 0:01:22]} e5 {[%emt 0:01:33]} 24. Qh2 {[%emt 0:00:41]} Bxf4+ {[%emt 0:01:12]} 25. Kb1 {[%emt 0:00:02]} Rg5 {[%emt 0:00:27]} 26. Qh3 {[%emt 0:00:11]} Nd4 {[%emt 0:01:15]} 27. Nxh5 {[%emt 0:00:09]} Rxg1+ {[%emt 0:02:02]} 28. Rxg1 {[%emt 0:00:02]} Ne6 {[%emt 0:00:03]} 29. Ng7 {[%emt 0:00:21]} Nf8 {[%emt 0:00:07]} 30. Qc8 {[%emt 0:00:23]} e4 {[%emt 0:00:13]} 31. fxe4 {[%emt 0:00:08]} dxe4 {[%emt 0:00:01]} 32. Ne6 {[%emt 0:00:06]} Bd6 {[%emt 0:00:02]} 33. Nxf8 {[%emt 0:00:26]} Qxf8 {[%emt 0:00:07]} 34. Qf5 {[%emt 0:00:12]} e3 {[%emt 0:00:07]} 35. f7 {[%emt 0:00:04]} 1-0

[Event "ESP-ch Rapid 2018"]
[Site "Linares"]
[Date "2018.08.19"]
[Round "7"]
[White "Blazquez Gomez, Miguel"]
[Black "Vinuela Diaz, Saul"]
[Result "0-1"]
[ECO "C42"]
[WhiteElo "1998"]
[BlackElo "2216"]
[Annotator "NA"]
[PlyCount "84"]
[EventDate "2018.08.19"]
[EventType "team-tourn"]
[EventCountry "ESP"]
[SourceTitle "playchess.com"]
[Source "ChessBase"]
[SourceQuality "1"]
[TimeControl "900+5"]

1. e4 {[%emt 0:00:00]} e5 {[%emt 0:00:00]} 2. Nf3 {[%emt 0:00:00]} Nf6 {[%emt 0:00:00]} 3. Nxe5 {[%emt 0:00:03]} d6 {[%emt 0:00:00]} 4. Nc4 {[%emt 0:00:06]} Nxe4 {[%emt 0:00:08]} 5. Qe2 {[%emt 0:00:01]} Qe7 {[%emt 0:00:05]} 6. d3 {[%emt 0:00:06]} Nf6 {[%emt 0:00:03]} 7. Nc3 {[%emt 0:00:14]} Be6 {[%emt 0:00:55]} 8. Bg5 {[%emt 0:00:22]} Nbd7 {[%emt 0:00:09]} 9. O-O-O {[%emt 0:00:24]} h6 {[%emt 0:00:05]} 10. Bh4 {[%emt 0:00:11]} O-O-O {[%emt 0:00:21]} 11. f3 {[%emt 0:01:29]} g5 {[%emt 0:00:16]} 12. Bf2 {[%emt 0:00:08]} Bg7 {[%emt 0:01:16]} 13. Nb5 {[%emt 0:01:31]} a6 {[%emt 0:00:12]} 14. Na7+ {[%emt 0:01:54]} Kb8 {[%emt 0:00:06]} 15. Na5 {[%emt 0:00:01]} Qe8 {[%emt 0:01:31]} 16. N7c6+ {[%emt 0:01:02]} bxc6 {[%emt 0:00:10]} 17. Nxc6+ {[%emt 0:00:01]} Kb7 {[%emt 0:00:16]} 18. Nxd8+ {[%emt 0:00:52]} Qxd8 {[%emt 0:00:02]} 19. d4 {[%emt 0:00:04]} Qa8 {[%emt 0:00:41]} 20. Rd3 {[%emt 0:00:01]} Bc4 {[%emt 0:00:35]} 21. Qd2 {[%emt 0:01:19]} Bxd3 {[%emt 0:00:03]} 22. Bxd3 {[%emt 0:00:01]} d5 {[%emt 0:01:13]} 23. Qb4+ {[%emt 0:01:24]} Nb6 {[%emt 0:00:02]} 24. h4 {[%emt 0:00:24]} Nh5 {[%emt 0:00:44]} 25. Qe7 {[%emt 0:02:00]} Nf4 {[%emt 0:00:17]} 26. Bf1 {[%emt 0:00:22]} Qe8 {[%emt 0:00:25]} 27. Qa3 {[%emt 0:00:02]} Qa4 {[%emt 0:00:27]} 28. Qxa4 {[%emt 0:00:24]} Nxa4 {[%emt 0:00:02]} 29. g3 {[%emt 0:00:21]} Ne6 {[%emt 0:00:03]} 30. c3 {[%emt 0:00:01]} Nb6 {[%emt 0:00:14]} 31. Kc2 {[%emt 0:00:11]} a5 {[%emt 0:00:17]} 32. b3 {[%emt 0:00:03]} Kc6 {[%emt 0:00:08]} 33. Bg2 {[%emt 0:00:10]} Rg8 {[%emt 0:00:58]} 34. Kd3 {[%emt 0:00:28]} f5 {[%emt 0:00:34]} 35. hxg5 {[%emt 0:00:22]} hxg5 {[%emt 0:00:03]} 36. c4 {[%emt 0:00:08]} Kd7 {[%emt 0:00:50]} 37. c5 {[%emt 0:00:41]} Nc8 {[%emt 0:00:11]} 38. Be1 {[%emt 0:00:10]} Bxd4 {[%emt 0:00:15]} 39. f4 {[%emt 0:00:18]} Ne7 {[%emt 0:00:29]} 40. c6+ {[%emt 0:00:18]} Kxc6 {[%emt 0:00:12]} 41. Bxa5 {[%emt 0:00:05]} gxf4 {[%emt 0:00:10]} 42. Rc1+ {[%emt 0:00:25]} Kd7 {[%emt 0:00:03]} 0-1

[Event "ESP-ch Rapid 2018"]
[Site "Linares"]
[Date "2018.08.19"]
[Round "7"]
[White "Diaz Rodriguez, Jose Antonio"]
[Black "Blazquez Gomez, Juan Carlos"]
[Result "1/2-1/2"]
[ECO "B01"]
[WhiteElo "1991"]
[BlackElo "2240"]
[Annotator "NA"]
[PlyCount "59"]
[EventDate "2018.08.19"]
[EventType "team-tourn"]
[EventCountry "ESP"]
[SourceTitle "playchess.com"]
[Source "ChessBase"]
[SourceQuality "1"]
[TimeControl "900+5"]

1. e4 {[%emt 0:00:01]} d5 {[%emt 0:00:00]} 2. exd5 {[%emt 0:00:04]} Nf6 {[%emt 0:00:00]} 3. h3 {[%emt 0:00:09]} Nxd5 {[%emt 0:00:02]} 4. Nf3 {[%emt 0:00:02]} g6 {[%emt 0:00:02]} 5. Bc4 {[%emt 0:00:02]} Nb6 {[%emt 0:00:12]} 6. Bb3 {[%emt 0:00:05]} c5 {[%emt 0:00:03]} 7. d3 {[%emt 0:00:03]} Bg7 {[%emt 0:00:01]} 8. Nc3 {[%emt 0:00:19]} O-O {[%emt 0:00:03]} 9. Be3 {[%emt 0:00:05]} Na6 {[%emt 0:04:10]} 10. Qd2 {[%emt 0:00:02]} Qd6 {[%emt 0:02:48]} 11. Bh6 {[%emt 0:01:00]} Be6 {[%emt 0:03:24]} 12. Bxg7 {[%emt 0:00:21]} Kxg7 {[%emt 0:00:02]} 13. Ne4 {[%emt 0:00:48]} Qc6 {[%emt 0:00:23]} 14. Bxe6 {[%emt 0:00:59]} Qxe6 {[%emt 0:00:04]} 15. O-O {[%emt 0:00:03]} f6 {[%emt 0:00:58]} 16. Rfe1 {[%emt 0:00:11]} Qd7 {[%emt 0:00:14]} 17. Ng3 {[%emt 0:01:46]} e5 {[%emt 0:00:18]} 18. Re4 {[%emt 0:00:53]} Rad8 {[%emt 0:00:49]} 19. Rh4 {[%emt 0:01:04]} Kg8 {[%emt 0:00:02]} 20. Ne4 {[%emt 0:01:52]} c4 {[%emt 0:00:14]} 21. dxc4 {[%emt 0:01:11]} Qxd2 {[%emt 0:00:02]} 22. Nexd2 {[%emt 0:00:12]} f5 {[%emt 0:00:15]} 23. Nb3 {[%emt 0:00:31]} e4 {[%emt 0:00:25]} 24. Ng5 {[%emt 0:00:02]} Rd7 {[%emt 0:00:14]} 25. c5 {[%emt 0:00:17]} Na4 {[%emt 0:00:20]} 26. Re1 {[%emt 0:01:21]} N4xc5 {[%emt 0:00:36]} 27. f3 Na4 28. Ra1 e3 29. Re1 e2 30. Ra1 1/2-1/2

[Event "ESP-ch Rapid 2018"]
[Site "Linares"]
[Date "2018.08.19"]
[Round "7"]
[White "Ordonez Torres, Jesus"]
[Black "Cabrera Ruiz, Luis"]
[Result "1-0"]
[ECO "B33"]
[WhiteElo "1989"]
[BlackElo "2122"]
[Annotator "NA"]
[PlyCount "103"]
[EventDate "2018.08.19"]
[EventType "team-tourn"]
[EventCountry "ESP"]
[SourceTitle "playchess.com"]
[Source "ChessBase"]
[SourceQuality "1"]
[TimeControl "900+5"]

1. e4 {[%emt 0:00:00]} c5 {[%emt 0:00:00]} 2. Nf3 {[%emt 0:00:00]} Nc6 {[%emt 0:00:00]} 3. d4 {[%emt 0:00:00]} cxd4 {[%emt 0:00:00]} 4. Nxd4 {[%emt 0:00:02]} Nf6 {[%emt 0:00:03]} 5. Nc3 {[%emt 0:00:02]} e5 {[%emt 0:00:02]} 6. Ndb5 {[%emt 0:00:01]} d6 {[%emt 0:00:01]} 7. Bg5 {[%emt 0:00:04]} a6 {[%emt 0:00:02]} 8. Na3 {[%emt 0:00:02]} b5 {[%emt 0:00:01]} 9. Nd5 {[%emt 0:00:02]} Be7 {[%emt 0:00:02]} 10. Bxf6 {[%emt 0:00:02]} Bxf6 {[%emt 0:00:02]} 11. c3 {[%emt 0:00:01]} O-O {[%emt 0:00:04]} 12. Nc2 {[%emt 0:00:02]} Bg5 {[%emt 0:00:03]} 13. a4 {[%emt 0:00:02]} bxa4 {[%emt 0:00:02]} 14. Rxa4 {[%emt 0:00:02]} a5 {[%emt 0:00:01]} 15. Bb5 {[%emt 0:00:02]} Bb7 {[%emt 0:00:57]} 16. O-O {[%emt 0:00:23]} Ne7 {[%emt 0:00:08]} 17. Nxe7+ {[%emt 0:00:53]} Bxe7 {[%emt 0:00:35]} 18. Ne3 {[%emt 0:00:30]} Qb6 {[%emt 0:00:22]} 19. Qd3 {[%emt 0:00:21]} g6 {[%emt 0:00:51]} 20. Bc4 {[%emt 0:02:28]} Bg5 {[%emt 0:00:36]} 21. b4 {[%emt 0:00:49]} Bxe3 {[%emt 0:01:41]} 22. fxe3 {[%emt 0:00:05]} axb4 {[%emt 0:00:19]} 23. Rxb4 {[%emt 0:00:16]} Qc7 {[%emt 0:00:19]} 24. h3 {[%emt 0:00:23]} Bc6 {[%emt 0:00:25]} 25. Rf6 {[%emt 0:01:19]} Rad8 {[%emt 0:00:09]} 26. Rb2 {[%emt 0:00:44]} Kg7 {[%emt 0:00:07]} 27. Rbf2 {[%emt 0:00:17]} Be8 {[%emt 0:00:23]} 28. Bd5 {[%emt 0:01:09]} Qe7 {[%emt 0:00:06]} 29. Qf1 {[%emt 0:00:27]} Qa7 {[%emt 0:00:32]} 30. R2f3 {[%emt 0:00:25]} Rd7 {[%emt 0:00:54]} 31. c4 {[%emt 0:00:17]} Qc5 {[%emt 0:00:20]} 32. Qf2 {[%emt 0:00:16]} Re7 {[%emt 0:00:15]} 33. Kh2 {[%emt 0:00:06]} Qc7 {[%emt 0:00:08]} 34. Qh4 {[%emt 0:00:52]} Bc6 {[%emt 0:01:29]} 35. c5 {[%emt 0:01:56]} Rd7 {[%emt 0:01:28]} 36. Be6 {[%emt 0:02:00]} dxc5 {[%emt 0:00:28]} 37. Bxd7 {[%emt 0:00:16]} Qxd7 {[%emt 0:00:08]} 38. Qg5 {[%emt 0:00:25]} Qc7 {[%emt 0:00:22]} 39. Qh4 {[%emt 0:00:41]} Qb7 {[%emt 0:00:21]} 40. Rd6 {[%emt 0:00:04]} f5 {[%emt 0:02:12]} 41. Rf2 {[%emt 0:00:00]} Bxe4 {[%emt 0:00:21]} 42. Rfd2 {[%emt 0:00:02]} Rf7 {[%emt 0:00:01]} 43. Qg3 {[%emt 0:00:10]} Qe7 {[%emt 0:00:31]} 44. Rd7 {[%emt 0:00:10]} Qe6 {[%emt 0:01:27]} 45. R7d6 {[%emt 0:00:05]} Qe7 {[%emt 0:00:01]} 46. Rd7 {[%emt 0:00:07]} Qe6 {[%emt 0:00:00]} 47. Rxf7+ {[%emt 0:00:05]} Kxf7 {[%emt 0:00:02]} 48. Qh4 {[%emt 0:00:03]} Kg7 {[%emt 0:00:07]} 49. Qd8 {[%emt 0:00:01]} Kh6 {[%emt 0:00:25]} 50. Rd6 {[%emt 0:00:11]} Qa2 {[%emt 0:00:01]} 51. Qh4+ {[%emt 0:00:05]} Kg7 {[%emt 0:00:01]} 52. Rd7+ {[%emt 0:00:04]} 1-0

[Event "ESP-ch Rapid 2018"]
[Site "Linares"]
[Date "2018.08.19"]
[Round "7"]
[White "Hernandez Perez, Juan Carlos"]
[Black "De La Fuente Gonzalez, Francisco"]
[Result "1-0"]
[WhiteElo "1946"]
[BlackElo "2174"]
[Annotator "NA"]
[PlyCount "69"]
[EventDate "2018.08.19"]
[EventType "team-tourn"]
[EventCountry "ESP"]
[SourceTitle "playchess.com"]
[Source "ChessBase"]
[SourceQuality "1"]
[TimeControl "900+5"]

1. e4 {[%emt 0:00:25]} e5 {[%emt 0:00:01]} 2. Nf3 {[%emt 0:00:02]} Nf6 {[%emt 0:00:05]} 3. Nc3 {[%emt 0:00:04]} Bb4 {[%emt 0:00:04]} 4. Bc4 {[%emt 0:00:10]} d6 {[%emt 0:00:11]} 5. O-O {[%emt 0:00:29]} O-O {[%emt 0:00:09]} 6. d3 {[%emt 0:00:10]} Bg4 {[%emt 0:00:55]} 7. Bg5 {[%emt 0:00:16]} c6 {[%emt 0:00:41]} 8. a3 {[%emt 0:02:33]} Bxc3 {[%emt 0:00:39]} 9. bxc3 {[%emt 0:00:02]} Nbd7 {[%emt 0:00:18]} 10. Re1 {[%emt 0:00:04]} Nc5 {[%emt 0:00:56]} 11. d4 {[%emt 0:00:36]} Ne6 {[%emt 0:01:17]} 12. Bxe6 {[%emt 0:00:53]} fxe6 {[%emt 0:00:18]} 13. dxe5 {[%emt 0:00:03]} Bxf3 {[%emt 0:00:09]} 14. Qxf3 {[%emt 0:02:41]} dxe5 {[%emt 0:00:04]} 15. Red1 {[%emt 0:01:10]} Qc7 {[%emt 0:00:15]} 16. Qe3 {[%emt 0:00:53]} Rf7 {[%emt 0:01:13]} 17. f3 {[%emt 0:00:39]} h6 {[%emt 0:02:00]} 18. Bh4 {[%emt 0:00:02]} Nh5 {[%emt 0:00:23]} 19. Rd2 {[%emt 0:00:24]} g5 {[%emt 0:00:59]} 20. Bf2 {[%emt 0:00:40]} Nf4 {[%emt 0:01:47]} 21. Rad1 {[%emt 0:00:08]} Qa5 {[%emt 0:00:30]} 22. c4 {[%emt 0:00:58]} Kg7 {[%emt 0:01:02]} 23. h4 {[%emt 0:00:05]} Kg6 {[%emt 0:00:38]} 24. Kh2 {[%emt 0:01:00]} Raf8 {[%emt 0:00:20]} 25. Rd7 {[%emt 0:00:30]} Qa4 {[%emt 0:00:36]} 26. Qc3 {[%emt 0:00:31]} b6 {[%emt 0:00:32]} 27. R1d2 {[%emt 0:00:23]} c5 {[%emt 0:00:10]} 28. Rxf7 {[%emt 0:00:02]} Rxf7 {[%emt 0:00:00]} 29. Qxe5 {[%emt 0:00:03]} Qxc4 {[%emt 0:00:07]} 30. Be3 {[%emt 0:00:20]} a5 {[%emt 0:00:40]} 31. Rd6 {[%emt 0:00:07]} Rf6 {[%emt 0:00:08]} 32. Rxb6 {[%emt 0:00:10]} Nxg2 {[%emt 0:00:11]} 33. hxg5 {[%emt 0:00:23]} Nxe3 {[%emt 0:00:17]} 34. Qxf6+ {[%emt 0:00:06]} Kh5 {[%emt 0:00:06]} 35. Qxh6# {[%emt 0:00:03]} 1-0

[Event "ESP-ch Rapid 2018"]
[Site "Linares"]
[Date "2018.08.19"]
[Round "7"]
[White "Alonso, Jose Antonio"]
[Black "Fernandez Torre, Ivan"]
[Result "0-1"]
[ECO "B34"]
[WhiteElo "1920"]
[BlackElo "2128"]
[Annotator "NA"]
[PlyCount "86"]
[EventDate "2018.08.19"]
[EventType "team-tourn"]
[EventCountry "ESP"]
[SourceTitle "playchess.com"]
[Source "ChessBase"]
[SourceQuality "1"]
[TimeControl "900+5"]

1. e4 {[%emt 0:00:00]} c5 {[%emt 0:00:00]} 2. Nf3 {[%emt 0:00:00]} Nc6 {[%emt 0:00:00]} 3. d4 {[%emt 0:00:00]} cxd4 {[%emt 0:00:00]} 4. Nxd4 {[%emt 0:00:01]} Nf6 {[%emt 0:00:00]} 5. Nc3 {[%emt 0:00:02]} e5 {[%emt 0:00:01]} 6. Nf3 {[%emt 0:00:28]} Bb4 {[%emt 0:00:11]} 7. Bd2 {[%emt 0:00:28]} d6 {[%emt 0:00:29]} 8. Bd3 {[%emt 0:00:08]} Bg4 {[%emt 0:00:07]} 9. h3 {[%emt 0:00:06]} Bh5 {[%emt 0:00:10]} 10. O-O {[%emt 0:00:54]} O-O {[%emt 0:00:07]} 11. a3 {[%emt 0:00:19]} Ba5 {[%emt 0:00:16]} 12. b4 {[%emt 0:00:16]} Bb6 {[%emt 0:00:02]} 13. Be2 {[%emt 0:00:05]} Bxf3 {[%emt 0:00:13]} 14. Bxf3 {[%emt 0:00:06]} Nd4 {[%emt 0:00:02]} 15. Bg5 {[%emt 0:00:09]} Rc8 {[%emt 0:00:24]} 16. Nd5 {[%emt 0:00:02]} Rxc2 {[%emt 0:00:20]} 17. Bxf6 {[%emt 0:00:24]} gxf6 {[%emt 0:00:02]} 18. Rc1 {[%emt 0:00:08]} Rxc1 {[%emt 0:00:42]} 19. Qxc1 {[%emt 0:00:01]} Kg7 {[%emt 0:00:01]} 20. Bg4 {[%emt 0:00:13]} f5 {[%emt 0:00:27]} 21. exf5 {[%emt 0:00:03]} f6 {[%emt 0:00:01]} 22. Nxb6 {[%emt 0:01:35]} Qxb6 {[%emt 0:00:21]} 23. Qc4 {[%emt 0:00:21]} Qc6 {[%emt 0:01:37]} 24. Qd3 {[%emt 0:00:39]} Rc8 {[%emt 0:01:07]} 25. Qg3 {[%emt 0:00:02]} Kh8 {[%emt 0:00:01]} 26. Qh4 {[%emt 0:00:01]} d5 {[%emt 0:00:03]} 27. Qh5 {[%emt 0:00:23]} Qd7 {[%emt 0:01:23]} 28. Bd1 {[%emt 0:00:33]} Qe8 {[%emt 0:01:28]} 29. Qh6 {[%emt 0:00:27]} Qf8 {[%emt 0:00:02]} 30. Qd2 {[%emt 0:00:18]} a5 {[%emt 0:00:43]} 31. Qa2 {[%emt 0:01:47]} axb4 {[%emt 0:02:33]} 32. axb4 {[%emt 0:00:01]} Rd8 {[%emt 0:01:37]} 33. Bb3 {[%emt 0:01:07]} Qxb4 {[%emt 0:00:58]} 34. Bxd5 {[%emt 0:00:22]} Nxf5 {[%emt 0:00:36]} 35. Rb1 {[%emt 0:00:35]} Qd4 {[%emt 0:00:02]} 36. Bxb7 {[%emt 0:00:55]} Nd6 {[%emt 0:00:01]} 37. Qe6 {[%emt 0:00:27]} e4 {[%emt 0:00:01]} 38. Qe7 {[%emt 0:01:32]} Re8 {[%emt 0:00:11]} 39. Qd7 {[%emt 0:00:14]} e3 {[%emt 0:00:12]} 40. fxe3 {[%emt 0:00:32]} Qxe3+ {[%emt 0:00:04]} 41. Kh1 {[%emt 0:00:06]} Nxb7 {[%emt 0:00:32]} 42. Rxb7 {[%emt 0:00:08]} Qc1+ {[%emt 0:00:01]} 43. Kh2 {[%emt 0:00:06]} Qf4+ {[%emt 0:00:02]} 0-1

[Event "ESP-ch Rapid 2018"]
[Site "Linares"]
[Date "2018.08.19"]
[Round "8"]
[White "Santos Latasa, Jaime"]
[Black "Ibarra Jerez, Jose Carlos"]
[Result "1/2-1/2"]
[ECO "A06"]
[WhiteElo "2582"]
[BlackElo "2570"]
[Annotator "RC"]
[PlyCount "106"]
[EventDate "2018.08.19"]
[EventType "team-tourn"]
[EventCountry "ESP"]
[SourceTitle "playchess.com"]
[Source "ChessBase"]
[SourceQuality "1"]
[TimeControl "900+5"]

1. Nf3 {[%emt 0:00:00]} d5 {[%emt 0:00:00]} 2. g3 {[%emt 0:00:03]} Bg4 {[%emt 0:00:18]} 3. Bg2 {[%emt 0:00:01]} c6 {[%emt 0:00:17]} 4. c4 {[%emt 0:00:04]} e6 {[%emt 0:00:05]} 5. cxd5 {[%emt 0:00:02]} Bxf3 {[%emt 0:00:02]} 6. Bxf3 {[%emt 0:00:02]} cxd5 {[%emt 0:00:02]} 7. O-O {[%emt 0:00:06]} Nf6 {[%emt 0:00:13]} 8. Nc3 {[%emt 0:00:11]} Nc6 {[%emt 0:00:04]} 9. d4 {[%emt 0:00:03]} Be7 {[%emt 0:00:10]} 10. e3 {[%emt 0:00:07]} O-O {[%emt 0:00:04]} 11. b3 {[%emt 0:00:03]} Qd7 {[%emt 0:01:20]} 12. Bb2 {[%emt 0:00:08]} Rfd8 {[%emt 0:00:05]} 13. Bg2 {[%emt 0:00:04]} Rac8 {[%emt 0:00:14]} 14. Rc1 {[%emt 0:00:07]} Ne8 {[%emt 0:00:16]} 15. Qe2 {[%emt 0:00:11]} Nd6 {[%emt 0:00:13]} 16. Rfd1 {[%emt 0:00:04]} Bf6 {[%emt 0:00:22]} 17. Na4 {[%emt 0:00:15]} b6 {[%emt 0:00:09]} 18. Nc3 {[%emt 0:00:03]} Ne7 {[%emt 0:00:31]} 19. Qa6 {[%emt 0:00:55]} Nc6 {[%emt 0:01:00]} 20. Qe2 {[%emt 0:01:25]} Ne7 {[%emt 0:00:08]} 21. Ba3 {[%emt 0:00:20]} Nef5 {[%emt 0:00:45]} 22. Bh3 {[%emt 0:00:13]} g6 {[%emt 0:00:23]} 23. Bxd6 {[%emt 0:00:28]} Qxd6 {[%emt 0:00:08]} 24. Bxf5 {[%emt 0:00:02]} gxf5 {[%emt 0:00:53]} 25. Qa6 {[%emt 0:00:04]} Qd7 {[%emt 0:03:11]} 26. Nb5 {[%emt 0:00:11]} e5 {[%emt 0:00:41]} 27. dxe5 {[%emt 0:00:47]} Bxe5 {[%emt 0:00:04]} 28. a4 {[%emt 0:00:16]} Bb8 {[%emt 0:00:25]} 29. Nd4 {[%emt 0:00:20]} Be5 {[%emt 0:00:19]} 30. Nf3 {[%emt 0:00:25]} Bf6 {[%emt 0:00:17]} 31. Qd3 {[%emt 0:00:06]} Qe6 {[%emt 0:00:10]} 32. Nd4 {[%emt 0:00:44]} Bxd4 {[%emt 0:01:39]} 33. Qxd4 {[%emt 0:00:08]} Rc6 {[%emt 0:00:48]} 34. Rxc6 {[%emt 0:00:50]} Qxc6 {[%emt 0:00:02]} 35. Qf4 {[%emt 0:00:01]} Qf6 {[%emt 0:00:24]} 36. Rd4 {[%emt 0:00:32]} Kg7 {[%emt 0:00:18]} 37. Kg2 {[%emt 0:00:15]} Rd6 {[%emt 0:00:06]} 38. Qf3 {[%emt 0:00:13]} Qe5 {[%emt 0:00:01]} 39. Rf4 {[%emt 0:00:11]} Rf6 {[%emt 0:00:04]} 40. Qh5 {[%emt 0:00:06]} h6 {[%emt 0:00:31]} 41. h3 {[%emt 0:00:49]} a5 {[%emt 0:00:07]} 42. Qd1 {[%emt 0:00:32]} Rc6 {[%emt 0:00:14]} 43. Qd3 {[%emt 0:00:25]} Rf6 {[%emt 0:00:18]} 44. b4 {[%emt 0:00:19]} axb4 {[%emt 0:00:08]} 45. Rxb4 {[%emt 0:00:01]} Rc6 {[%emt 0:00:06]} 46. Rd4 {[%emt 0:00:06]} Rd6 {[%emt 0:00:08]} 47. Qc3 {[%emt 0:00:36]} Qf6 {[%emt 0:00:22]} 48. Qc7 {[%emt 0:00:15]} Qe6 {[%emt 0:00:07]} 49. Qc2 {[%emt 0:00:35]} Qe5 {[%emt 0:00:22]} 50. Qc8 {[%emt 0:00:02]} Qe6 {[%emt 0:00:04]} 51. Qb7 {[%emt 0:00:07]} Rc6 {[%emt 0:00:05]} 52. Rf4 {[%emt 0:00:08]} Rc4 {[%emt 0:00:06]} 53. Qb8 {[%emt 0:00:37]} Rxf4 {[%emt 0:00:02]} 1/2-1/2

[Event "ESP-ch Rapid 2018"]
[Site "Linares"]
[Date "2018.08.19"]
[Round "8"]
[White "Santos Ruiz, Miguel"]
[Black "Domingo Nunez, Ruben"]
[Result "1-0"]
[ECO "E32"]
[WhiteElo "2517"]
[BlackElo "2318"]
[Annotator "ChessBase"]
[PlyCount "71"]
[EventDate "2018.08.19"]
[EventType "team-tourn"]
[EventCountry "ESP"]
[SourceTitle "playchess.com"]
[Source "ChessBase"]
[SourceQuality "1"]
[TimeControl "900+5"]

1. d4 {[%emt 0:00:00]} Nf6 {[%emt 0:00:00]} 2. c4 {[%emt 0:00:00]} e6 {[%emt 0:00:03]} 3. Nc3 {[%emt 0:00:00]} Bb4 {[%emt 0:00:02]} 4. Qc2 {[%emt 0:00:03]} O-O {[%emt 0:00:03]} 5. a3 {[%emt 0:00:01]} Bxc3+ {[%emt 0:00:04]} 6. Qxc3 {[%emt 0:00:00]} d6 {[%emt 0:00:03]} 7. g3 {[%emt 0:00:08]} Nbd7 {[%emt 0:00:15]} 8. Bg2 {[%emt 0:00:05]} e5 {[%emt 0:00:10]} 9. Nf3 {[%emt 0:00:04]} Qe7 {[%emt 0:00:05]} 10. O-O {[%emt 0:00:25]} a5 {[%emt 0:00:28]} 11. b3 {[%emt 0:00:06]} Re8 {[%emt 0:00:29]} 12. dxe5 {[%emt 0:00:10]} Nxe5 {[%emt 0:00:15]} 13. Bb2 {[%emt 0:00:02]} Nfd7 {[%emt 0:00:58]} 14. Nd4 {[%emt 0:00:17]} Nf6 {[%emt 0:06:32]} 15. Rfd1 {[%emt 0:02:29]} Ned7 {[%emt 0:00:17]} 16. b4 {[%emt 0:02:26]} Nb6 {[%emt 0:01:39]} 17. Qc2 {[%emt 0:00:36]} d5 {[%emt 0:02:42]} 18. cxd5 {[%emt 0:00:26]} axb4 {[%emt 0:00:02]} 19. axb4 {[%emt 0:01:44]} Rxa1 {[%emt 0:00:03]} 20. Bxa1 {[%emt 0:00:03]} Nbxd5 {[%emt 0:00:17]} 21. b5 {[%emt 0:00:02]} Bg4 {[%emt 0:00:44]} 22. h3 {[%emt 0:00:11]} Bc8 {[%emt 0:01:05]} 23. e3 {[%emt 0:00:24]} h6 {[%emt 0:00:29]} 24. Nf5 {[%emt 0:00:43]} Bxf5 {[%emt 0:00:05]} 25. Qxf5 {[%emt 0:00:01]} Rd8 {[%emt 0:00:07]} 26. Bxd5 {[%emt 0:00:10]} c6 {[%emt 0:00:06]} 27. Bxf6 {[%emt 0:00:06]} gxf6 {[%emt 0:00:04]} 28. bxc6 {[%emt 0:00:18]} bxc6 {[%emt 0:00:02]} 29. Qg6+ {[%emt 0:00:03]} Kf8 {[%emt 0:00:06]} 30. Qxh6+ {[%emt 0:00:04]} Kg8 {[%emt 0:00:03]} 31. Bf3 {[%emt 0:00:15]} Rxd1+ {[%emt 0:00:03]} 32. Bxd1 {[%emt 0:00:01]} Qd6 {[%emt 0:00:13]} 33. Bb3 {[%emt 0:00:12]} Qe7 {[%emt 0:00:05]} 34. Qg6+ {[%emt 0:00:04]} Kf8 {[%emt 0:00:01]} 35. Qh7 {[%emt 0:00:06]} Qb7 {[%emt 0:00:06]} 36. Qd3 {[%emt 0:00:12]} 1-0